fUSD/lending_fUSD_20260111
["ID","MTS","AMOUNT","RATE_DAILY","PERIOD"]
[401344953,1768149044042,-482.99,0.00017041,2]
[401344955,1768149044051,-482.99,0.00017041,2]
[401344957,1768149044060,-500.0,0.00017066,2]
[401344959,1768149044069,-500.0,0.00017066,2]
[401344961,1768149044079,-500.0,0.00017066,2]
[401344963,1768149044088,-500.0,0.00017066,2]
[401344965,1768149044097,-500.0,0.00017066,2]
[401344966,1768149044106,-500.0,0.00017066,2]
[401344969,1768149044115,-23252.9881705,0.00017068,2]
[401344971,1768149044125,-16590.1908743,0.0001707,2]
[401344972,1768149044134,-500.0,0.00017072,2]
[401344974,1768149044143,-500.0,0.00017073,2]
[401344976,1768149044152,-500.0,0.00017073,2]
[401344979,1768149044166,-500.0,0.00017073,2]
[401344981,1768149044175,-243.38858154,0.00017073,2]
[401344983,1768149044185,-500.0,0.00017073,2]
[401344985,1768149044194,-500.0,0.00017073,2]
[401344987,1768149044204,-500.0,0.00017073,2]
[401344989,1768149044213,-256.01043912,0.00017073,2]
[401344991,1768149044222,-500.0,0.00017073,2]
[401344993,1768149044232,-418.63063862,0.00017073,2]
[401344995,1768149044242,-500.0,0.00017073,2]
[401344997,1768149044251,-171.49,0.00017078,2]
[401344999,1768149044261,-179.23,0.00017078,2]
[401345001,1768149044270,-322.6107,0.00017099,2]
[401345003,1768149044280,-553.64373807,0.00017099,2]
[401345006,1768149044291,-250.0,0.00017099,2]
[401345007,1768149044300,-620.0,0.00017099,2]
[401345008,1768149044310,-542.8884043,0.00017099,2]
[401345009,1768149044320,-998.0,0.00017099,2]
[401345010,1768149044329,-250.0,0.00017099,2]
[401345011,1768149044339,-402.0,0.00017099,2]
[401345012,1768149044348,-250.0,0.00017099,2]
[401345013,1768149044358,-150.0,0.000171,2]
[401345014,1768149044367,-150.0,0.000171,2]
[401345015,1768149044376,-150.0,0.000171,2]
[401345017,1768149044386,-150.0,0.000171,2]
[401345019,1768149044395,-1000.0,0.00017112,2]
[401345021,1768149044404,-168.0,0.00017128,2]
[401345023,1768149044415,-1801.26,0.00017135,2]
[401345025,1768149044424,-395.45007883,0.00017157,2]
[401345027,1768149044434,-200.0,0.00017174,2]
[401345029,1768149044444,-345.72,0.00017178,2]
[401345031,1768149044453,-179.23,0.00017178,2]
[401345033,1768149044467,-179.23,0.00017178,2]
[401345036,1768149044476,-556.69,0.00017178,2]
[401345038,1768149044486,-179.23,0.00017178,2]
[401345040,1768149044496,-301.43,0.00017178,2]
[401345042,1768149044507,-300.0,0.00017178,2]
[401345044,1768149044516,-171.49,0.00017178,2]
[401345046,1768149044526,-467.05,0.00017178,2]
[401345048,1768149044536,-556.69,0.00017178,2]
[401345050,1768149044546,-179.23,0.00017178,2]
[401345052,1768149044556,-171.49,0.00017178,2]
[401345054,1768149044565,-467.05,0.00017178,2]
[401345055,1768149044575,-171.49,0.00017178,2]
[401345058,1768149044585,-556.69,0.00017178,2]
[401345059,1768149044595,-467.05,0.00017178,2]
[401345062,1768149044605,-150.0,0.00017178,2]
[401345064,1768149044614,-171.49,0.00017178,2]
[401345066,1768149044624,-556.69,0.00017178,2]
[401345068,1768149044633,-467.05,0.00017178,2]
[401345070,1768149044643,-179.23,0.00017178,2]
[401345072,1768149044653,-467.05,0.00017178,2]
[401345074,1768149044662,-556.69,0.00017178,2]
[401345076,1768149044676,-171.49,0.00017178,2]
[401345078,1768149044685,-179.23,0.00017178,2]
[401345080,1768149044695,-556.69,0.00017178,2]
[401345082,1768149044704,-171.49,0.00017178,2]
[401345084,1768149044714,-179.23,0.00017178,2]
[401345086,1768149044728,-467.05,0.00017178,2]
[401345088,1768149044738,-179.23,0.00017178,2]
[401345090,1768149044748,-171.49,0.00017178,2]
[401345093,1768149044758,-467.05,0.00017178,2]
[401345095,1768149044769,-556.69,0.00017178,2]
[401345097,1768149044779,-590.06318863,0.0001718,2]
[401345099,1768149044788,-150.0,0.000172,2]
[401345101,1768149044798,-150.0,0.0001728,2]
[401345103,1768149044807,-150.0,0.0001728,2]
[401345105,1768149044817,-150.0,0.0001728,2]
[401345107,1768149044826,-150.0,0.0001728,2]
[401345108,1768149044836,-750.24,0.000173,2]
[401345109,1768149044845,-210.63079077,0.000173,2]
[401345110,1768149044854,-1898.0,0.00017322,2]
[401345111,1768149044864,-150.0,0.00017325,2]
[401345112,1768149044873,-23252.9881705,0.00017345,2]
[401345113,1768149044883,-16590.1908743,0.00017346,2]
[401345114,1768149044892,-150.0,0.000174,2]
[401345115,1768149044902,-150.0,0.000174,2]
[401345116,1768149044912,-1801.26,0.00017408,2]
[401345117,1768149044924,-590.06318863,0.0001742,2]
[401345118,1768149044934,-1800.0,0.00017452,7]
[401345119,1768149044943,-150.0,0.0001746,2]
[401345120,1768149044953,-158.88908691,0.00017482,2]
[401345123,1768149044963,-1898.0,0.00017493,2]
[401345125,1768149044972,-1601.60083457,0.000175,2]
[401345127,1768149044982,-395.45007883,0.00017528,2]
[401345129,1768149044991,-154.01,0.00017545,2]
[401345131,1768149045001,-150.0,0.0001755,2]
[401345133,1768149045011,-150.0,0.0001755,2]
[401345135,1768149045020,-31935.2829418,0.00017577,2]
[401345137,1768149045029,-4106.764814,0.00017577,2]
[401345139,1768149045039,-153.803305,0.00017577,2]
[401345141,1768149045049,-4106.764814,0.00017577,2]
[401345143,1768149045059,-1089.522056,0.00017577,2]
[401345145,1768149045069,-151.0,0.00017577,2]
[401345147,1768149045079,-4106.764814,0.00017577,2]
[401345149,1768149045089,-1089.522056,0.00017577,2]
[401345151,1768149045099,-151.0,0.00017577,2]
[401345153,1768149045108,-4106.764814,0.00017577,2]
[401345155,1768149045118,-1089.522056,0.00017577,2]
[401345157,1768149045127,-1089.522056,0.00017577,2]
[401345159,1768149045138,-161.879998,0.00017577,2]
[401345161,1768149045147,-151.0,0.00017577,2]
[401345163,1768149045156,-282.28364,0.00017577,2]
[401345165,1768149045165,-151.0,0.00017577,2]
[401345167,1768149045178,-282.28364,0.00017577,2]
[401345169,1768149045188,-465.445525,0.00017577,2]
[401345171,1768149045197,-282.28364,0.00017577,2]
[401345173,1768149045206,-465.445525,0.00017577,2]
[401345175,1768149045215,-282.28364,0.00017577,2]
[401345177,1768149045225,-623.001243,0.00017577,2]
[401345179,1768149045234,-151.0,0.00017577,2]
[401345181,1768149045244,-465.445525,0.00017577,2]
[401345183,1768149045254,-623.001243,0.00017577,2]
[401345185,1768149045264,-465.445525,0.00017577,2]
[401345188,1768149045274,-1493.308871,0.00017577,2]
[401345190,1768149045288,-623.001243,0.00017577,2]
[401345192,1768149045298,-151.0,0.00017577,2]
[401345195,1768149045309,-1493.308871,0.00017577,2]
[401345197,1768149045318,-623.001243,0.00017577,2]
[401345199,1768149045328,-1493.308871,0.00017577,2]
[401345201,1768149045337,-733.26669,0.00017577,2]
[401345203,1768149045346,-1493.308871,0.00017577,2]
[401345205,1768149045356,-151.0,0.00017577,2]
[401345207,1768149045365,-252.711601,0.00017577,2]
[401345209,1768149045375,-733.26669,0.00017577,2]
[401345211,1768149045384,-151.0,0.00017577,2]
[401345213,1768149045394,-1580.779284,0.00017577,2]
[401345215,1768149045404,-733.26669,0.00017577,2]
[401345217,1768149045414,-151.0,0.00017577,2]
[401345219,1768149045425,-1580.779284,0.00017577,2]
[401345221,1768149045435,-151.0,0.00017577,2]
[401345223,1768149045445,-733.26669,0.00017577,2]
[401345225,1768149045455,-151.0,0.00017577,2]
[401345227,1768149045466,-1580.779284,0.00017577,2]
[401345229,1768149045476,-151.0,0.00017577,2]
[401345231,1768149045485,-1580.779284,0.00017577,2]
[401345233,1768149045497,-169.229302,0.00017577,2]
[401345235,1768149045507,-151.0,0.00017577,2]
[401345237,1768149045516,-170.500208,0.00017577,2]
[401345239,1768149045525,-170.500208,0.00017577,2]
[401345241,1768149045537,-170.500208,0.00017577,2]
[401345243,1768149045546,-542.914314,0.00017577,2]
[401345245,1768149045555,-170.500208,0.00017577,2]
[401345247,1768149045565,-542.914314,0.00017577,2]
[401345249,1768149045575,-542.914314,0.00017577,2]
[401345251,1768149045585,-151.0,0.00017577,2]
[401345254,1768149045595,-189.479204,0.00017577,2]
[401345256,1768149045604,-201.153607,0.00017577,2]
[401345258,1768149045614,-542.914314,0.00017577,2]
[401345260,1768149045623,-438.857825,0.00017577,2]
[401345262,1768149045633,-201.153607,0.00017577,2]
[401345264,1768149045643,-438.857825,0.00017577,2]
[401345266,1768149045653,-201.153607,0.00017577,2]
[401345268,1768149045663,-438.857825,0.00017577,2]
[401345270,1768149045676,-201.153607,0.00017577,2]
[401345272,1768149045686,-438.857825,0.00017577,2]
[401345274,1768149045697,-151.0,0.00017577,2]
[401345276,1768149045707,-151.0,0.00017577,2]
[401345278,1768149045716,-372.861137,0.00017577,2]
[401345280,1768149045726,-165.117805,0.00017577,2]
[401345282,1768149045735,-372.861137,0.00017577,2]
[401345284,1768149045745,-372.861137,0.00017577,2]
[401345286,1768149045755,-372.861137,0.00017577,2]
[401345288,1768149045765,-215.51,0.00017586,2]
[401345290,1768149045775,-150.0,0.000176,2]
[401345292,1768149045784,-1000.0,0.00017621,2]
[401345294,1768149045794,-1000.0,0.00017621,2]
[401345296,1768149045804,-502.55051193,0.00017621,2]
[401345298,1768149045814,-23252.9881705,0.00017623,2]
[401345300,1768149045823,-16590.1908743,0.00017623,2]
[401345303,1768149045837,-150.0,0.0001764,2]
[401345305,1768149045849,-150.0,0.0001764,2]
[401345307,1768149045860,-150.0,0.0001764,2]
[401345309,1768149045870,-150.0,0.0001764,2]
[401345311,1768149045880,-592.20523057,0.0001764,2]
[401345313,1768149045891,-2291.8576557,0.0001764,2]
[401345315,1768149045903,-574.12855637,0.00017647,2]
[401345317,1768149045913,-590.06318863,0.0001766,2]
[401345319,1768149045928,-1801.26,0.00017682,2]
[401345321,1768149045938,-166.67,0.000177,2]
[401345323,1768149045949,-150.0,0.000177,2]
[401345325,1768149045959,-1000.0,0.000177,2]
[401345327,1768149045971,-780.16040122,0.000177,2]
[401345329,1768149045981,-1000.0,0.00017709,2]
[401345332,1768149045997,-1000.0,0.00017718,2]
[401345334,1768149046008,-806.0,0.00017723,2]
[401345336,1768149046019,-800.0,0.00017726,7]
[401345338,1768149046029,-1898.0,0.00017736,2]
[401345339,1768149046040,-1000.0,0.00017741,2]
[401345340,1768149046050,-616.50589084,0.00017743,2]
[401345341,1768149046062,-1000.0,0.00017748,2]
[401345342,1768149046073,-1000.0,0.0001775,2]
[401345343,1768149046084,-1000.0,0.00017756,2]
[401345344,1768149046094,-1000.0,0.00017762,2]
[401345345,1768149046104,-150.0,0.00017775,2]
[401345346,1768149046114,-1000.0,0.00017776,2]
[401345347,1768149046124,-1898.0,0.0001778,2]
[401345349,1768149046134,-118131.6892917,0.00017785,2]
[401345351,1768149046144,-731.2563778,0.00017785,2]
[401345353,1768149046154,-151.0,0.00017785,2]
[401345355,1768149046164,-151.0,0.00017785,2]
[401345358,1768149046180,-1269.86314,0.00017785,2]
[401345360,1768149046190,-151.0,0.00017785,2]
[401345361,1768149046201,-391.846549,0.00017785,2]
[401345364,1768149046211,-1269.86314,0.00017785,2]
[401345365,1768149046221,-151.0,0.00017785,2]
[401345368,1768149046231,-391.846549,0.00017785,2]
[401345370,1768149046243,-1269.86314,0.00017785,2]
[401345372,1768149046253,-151.0,0.00017785,2]
[401345374,1768149046263,-186.823703,0.00017785,2]
[401345376,1768149046272,-391.846549,0.00017785,2]
[401345378,1768149046282,-1269.86314,0.00017785,2]
[401345380,1768149046291,-391.846549,0.00017785,2]
[401345382,1768149046300,-151.0,0.00017785,2]
[401345384,1768149046310,-318.505397,0.00017785,2]
[401345386,1768149046320,-151.0,0.00017785,2]
[401345388,1768149046329,-654.595373,0.00017785,2]
[401345390,1768149046338,-151.0,0.00017785,2]
[401345392,1768149046348,-226.601997,0.00017785,2]
[401345394,1768149046357,-318.505397,0.00017785,2]
[401345396,1768149046366,-151.0,0.00017785,2]
[401345398,1768149046376,-654.595373,0.00017785,2]
[401345400,1768149046386,-151.0,0.00017785,2]
[401345402,1768149046396,-318.505397,0.00017785,2]
[401345404,1768149046406,-654.595373,0.00017785,2]
[401345407,1768149046419,-151.0,0.00017785,2]
[401345409,1768149046428,-151.0,0.00017785,2]
[401345411,1768149046438,-318.505397,0.00017785,2]
[401345413,1768149046449,-151.0,0.00017785,2]
[401345415,1768149046459,-654.595373,0.00017785,2]
[401345416,1768149046468,-151.0,0.00017785,2]
[401345419,1768149046479,-151.0,0.00017785,2]
[401345421,1768149046489,-151.0,0.00017785,2]
[401345423,1768149046499,-1765.956881,0.00017785,2]
[401345425,1768149046508,-1765.956881,0.00017785,2]
[401345427,1768149046517,-1765.956881,0.00017785,2]
[401345429,1768149046527,-151.0,0.00017785,2]
[401345431,1768149046537,-1765.956881,0.00017785,2]
[401345432,1768149046546,-151.0,0.00017785,2]
[401345434,1768149046555,-175.422286,0.00017785,2]
[401345436,1768149046565,-244.883945,0.00017785,2]
[401345439,1768149046574,-151.0,0.00017785,2]
[401345441,1768149046583,-151.0,0.00017785,2]
[401345443,1768149046593,-244.883945,0.00017785,2]
[401345444,1768149046602,-151.0,0.00017785,2]
[401345447,1768149046612,-244.883945,0.00017785,2]
[401345449,1768149046622,-151.0,0.00017785,2]
[401345451,1768149046631,-244.883945,0.00017785,2]
[401345453,1768149046643,-151.0,0.00017785,2]
[401345455,1768149046653,-2068.70979,0.00017785,2]
[401345457,1768149046663,-1001.36882,0.00017785,2]
[401345459,1768149046674,-2068.70979,0.00017785,2]
[401345461,1768149046684,-1001.36882,0.00017785,2]
[401345463,1768149046694,-2068.70979,0.00017785,2]
[401345465,1768149046705,-1001.36882,0.00017785,2]
[401345467,1768149046715,-151.0,0.00017785,2]
[401345469,1768149046725,-1001.36882,0.00017785,2]
[401345471,1768149046735,-2068.70979,0.00017785,2]
[401345473,1768149046744,-151.0,0.00017785,2]
[401345475,1768149046753,-151.0,0.00017785,2]
[401345477,1768149046763,-151.0,0.00017785,2]
[401345479,1768149046773,-151.0,0.00017785,2]
[401345481,1768149046786,-427.001082,0.00017785,2]
[401345482,1768149046795,-151.0,0.00017785,2]
[401345485,1768149046804,-427.001082,0.00017785,2]
[401345486,1768149046814,-704.160543,0.00017785,2]
[401345488,1768149046824,-151.0,0.00017785,2]
[401345490,1768149046833,-427.001082,0.00017785,2]
[401345493,1768149046844,-151.0,0.00017785,2]
[401345495,1768149046853,-704.160543,0.00017785,2]
[401345497,1768149046864,-151.0,0.00017785,2]
[401345499,1768149046873,-427.001082,0.00017785,2]
[401345501,1768149046883,-704.160543,0.00017785,2]
[401345503,1768149046893,-704.160543,0.00017785,2]
[401345505,1768149046903,-342.488988,0.00017785,2]
[401345507,1768149046914,-342.488988,0.00017785,2]
[401345509,1768149046926,-342.488988,0.00017785,2]
[401345511,1768149046937,-1018.724913,0.00017785,2]
[401345513,1768149046948,-170.438842,0.00017785,2]
[401345515,1768149046958,-342.488988,0.00017785,2]
[401345517,1768149046968,-1018.724913,0.00017785,2]
[401345519,1768149046978,-170.438842,0.00017785,2]
[401345522,1768149046988,-1018.724913,0.00017785,2]
[401345524,1768149046998,-170.438842,0.00017785,2]
[401345526,1768149047007,-1018.724913,0.00017785,2]
[401345528,1768149047017,-170.438842,0.00017785,2]
[401345530,1768149047026,-1000.0,0.00017796,2]
[401345532,1768149047035,-1000.0,0.00017799,2]
[401345534,1768149047045,-2000.0,0.000178,2]
[401345536,1768149047055,-150.0,0.000178,2]
[401345538,1768149047065,-1000.0,0.000178,2]
[401345540,1768149047075,-14440.20798762,0.000178,2]
[401345542,1768149047085,-1000.0,0.00017802,2]
[401345544,1768149047094,-1382.861,0.00017808,2]
[401345546,1768149047104,-1898.0,0.00017817,2]
[401345548,1768149047114,-150.0,0.0001782,2]
[401345550,1768149047124,-1942.22931,0.0001782,2]
[401345552,1768149047133,-1942.22932,0.0001782,2]
[401345554,1768149047143,-1000.0,0.00017827,2]
[401345557,1768149047153,-1942.22932,0.0001783,2]
[401345559,1768149047162,-1898.0,0.00017835,2]
[401345561,1768149047174,-1000.0,0.00017838,2]
[401345563,1768149047183,-1000.0,0.00017839,2]
[401345565,1768149047193,-1000.0,0.00017844,2]
[401345567,1768149047203,-200.0,0.00017856,2]
[401345569,1768149047213,-1000.0,0.00017856,2]
[401345571,1768149047223,-1000.0,0.00017859,2]
[401345573,1768149047233,-1000.0,0.0001786,2]
[401345575,1768149047243,-1942.22932,0.0001786,2]
[401345577,1768149047253,-1000.0,0.00017864,2]
[401345579,1768149047262,-2784.2928876,0.00017865,2]
[401345581,1768149047272,-3914.9609459,0.00017865,2]
[401345583,1768149047281,-1810.1434119,0.00017865,2]
[401345585,1768149047290,-1000.0,0.00017868,2]
[401345587,1768149047299,-1000.0,0.00017871,2]
[401345589,1768149047308,-1000.0,0.00017875,2]
[401345591,1768149047318,-1942.22932,0.0001788,2]
[401345593,1768149047329,-25000.0,0.00017882,3]
[401345595,1768149047338,-1000.0,0.00017886,2]
[401345597,1768149047348,-174.1373823,0.0001789,2]
[401345599,1768149047358,-151.0,0.00017891,2]
[401345601,1768149047371,-172.082779,0.00017891,2]
[401345603,1768149047382,-151.0,0.00017891,2]
[401345605,1768149047393,-151.0,0.00017891,2]
[401345608,1768149047403,-151.0,0.00017891,2]
[401345610,1768149047413,-151.0,0.00017891,2]
[401345613,1768149047433,-237.806149,0.00017891,2]
[401345615,1768149047444,-680.939729,0.00017891,2]
[401345651,1768149047785,-151.0,0.00017891,2]
[401345653,1768149047794,-456.754994,0.00017891,2]
[401345655,1768149047804,-151.0,0.00017891,2]
[401345656,1768149047813,-151.0,0.00017891,2]
[401345657,1768149047822,-680.939729,0.00017891,2]
[401345658,1768149047832,-151.0,0.00017891,2]
[401345659,1768149047842,-456.754994,0.00017891,2]
[401345660,1768149047851,-151.0,0.00017891,2]
[401345661,1768149047861,-151.0,0.00017891,2]
[401345662,1768149047870,-680.939729,0.00017891,2]
[401345663,1768149047879,-456.754994,0.00017891,2]
[401345664,1768149047889,-151.0,0.00017891,2]
[401345666,1768149047899,-680.939729,0.00017891,2]
[401345668,1768149047909,-171.539369,0.00017891,2]
[401345670,1768149047919,-456.754994,0.00017891,2]
[401345672,1768149047929,-188.904835,0.00017891,2]
[401345674,1768149047943,-188.904835,0.00017891,2]
[401345676,1768149047952,-188.904835,0.00017891,2]
[401345678,1768149047962,-292.243279,0.00017891,2]
[401345680,1768149047973,-151.0,0.00017891,2]
[401345682,1768149047983,-188.904835,0.00017891,2]
[401345685,1768149047993,-151.0,0.00017891,2]
[401345687,1768149048003,-223.771483,0.00017891,2]
[401345689,1768149048012,-151.0,0.00017891,2]
[401345691,1768149048019,-402.348632,0.00017891,2]
[401345692,1768149048027,-151.0,0.00017891,2]
[401345694,1768149048034,-402.348632,0.00017891,2]
[401345696,1768149048042,-402.348632,0.00017891,2]
[401345698,1768149048051,-402.348632,0.00017891,2]
[401345701,1768149048061,-365.740895,0.00017891,2]
[401345703,1768149048070,-200.294492,0.00017891,2]
[401345705,1768149048080,-365.740895,0.00017891,2]
[401345707,1768149048089,-365.740895,0.00017891,2]
[401345709,1768149048099,-365.740895,0.00017891,2]
[401345711,1768149048108,-25000.0,0.00017891,3]
[401345713,1768149048117,-500.0,0.00017899,2]
[401345715,1768149048126,-500.0,0.00017899,2]
[401345717,1768149048136,-500.0,0.00017899,2]
[401345719,1768149048145,-500.0,0.00017899,2]
[401345721,1768149048155,-263.81978441,0.00017899,3]
[401345723,1768149048164,-263.81978441,0.000179,3]
[401345725,1768149048176,-1764.49912385,0.000179,2]
[401345727,1768149048186,-25000.0,0.000179,3]
[401345729,1768149048196,-10000.0,0.000179,2]
[401345730,1768149048205,-12203.16741694,0.000179,3]
[401345733,1768149048214,-23252.9881705,0.000179,2]
[401345735,1768149048223,-210.63079077,0.000179,2]
[401345737,1768149048234,-1000.0,0.000179,2]
[401345739,1768149048243,-16590.1908743,0.000179,2]
[401345741,1768149048258,-395.45007883,0.000179,2]
[401345743,1768149048267,-151.0,0.000179,2]
[401345745,1768149048277,-151.0,0.000179,2]
[401345747,1768149048287,-906.513466,0.000179,2]
[401345749,1768149048297,-151.0,0.000179,2]
[401345751,1768149048307,-151.0,0.000179,2]
[401345753,1768149048316,-906.513466,0.000179,2]
[401345755,1768149048326,-2039.220797,0.000179,2]
[401345757,1768149048336,-151.0,0.000179,2]
[401345759,1768149048347,-332.214435,0.000179,2]
[401345762,1768149048357,-151.0,0.000179,2]
[401345764,1768149048367,-2039.220797,0.000179,2]
[401345766,1768149048377,-906.513466,0.000179,2]
[401345768,1768149048387,-151.0,0.000179,2]
[401345770,1768149048397,-332.214435,0.000179,2]
[401345772,1768149048408,-906.513466,0.000179,2]
[401345774,1768149048419,-2039.220797,0.000179,2]
[401345776,1768149048429,-172.184555,0.000179,2]
[401345778,1768149048438,-332.214435,0.000179,2]
[401345780,1768149048450,-151.0,0.000179,2]
[401345782,1768149048459,-2039.220797,0.000179,2]
[401345784,1768149048469,-332.214435,0.000179,2]
[401345786,1768149048479,-573.970445,0.000179,2]
[401345788,1768149048490,-573.970445,0.000179,2]
[401345790,1768149048500,-580.109053,0.000179,2]
[401345792,1768149048510,-216.190039,0.000179,2]
[401345794,1768149048519,-173.624464,0.000179,2]
[401345796,1768149048530,-573.970445,0.000179,2]
[401345798,1768149048540,-151.0,0.000179,2]
[401345800,1768149048550,-580.109053,0.000179,2]
[401345802,1768149048560,-179.284149,0.000179,2]
[401345804,1768149048570,-151.0,0.000179,2]
[401345806,1768149048579,-173.624464,0.000179,2]
[401345808,1768149048590,-573.970445,0.000179,2]
[401345810,1768149048599,-580.109053,0.000179,2]
[401345812,1768149048610,-151.0,0.000179,2]
[401345814,1768149048619,-173.624464,0.000179,2]
[401345816,1768149048629,-165.572138,0.000179,2]
[401345818,1768149048640,-580.109053,0.000179,2]
[401345821,1768149048651,-1965.222408,0.000179,2]
[401345823,1768149048661,-165.572138,0.000179,2]
[401345825,1768149048672,-173.624464,0.000179,2]
[401345827,1768149048683,-160.683881,0.000179,2]
[401345829,1768149048692,-1965.222408,0.000179,2]
[401345831,1768149048703,-151.0,0.000179,2]
[401345833,1768149048713,-196.746434,0.000179,2]
[401345835,1768149048722,-165.572138,0.000179,2]
[401345837,1768149048732,-1965.222408,0.000179,2]
[401345839,1768149048742,-151.0,0.000179,2]
[401345841,1768149048752,-196.746434,0.000179,2]
[401345843,1768149048761,-165.572138,0.000179,2]
[401345845,1768149048771,-1965.222408,0.000179,2]
[401345847,1768149048780,-168.841233,0.000179,2]
[401345849,1768149048790,-196.746434,0.000179,2]
[401345851,1768149048799,-921.834081,0.000179,2]
[401345853,1768149048809,-2071.7205,0.000179,2]
[401345855,1768149048818,-196.746434,0.000179,2]
[401345857,1768149048828,-2071.7205,0.000179,2]
[401345859,1768149048838,-921.834081,0.000179,2]
[401345861,1768149048848,-2071.7205,0.000179,2]
[401345863,1768149048857,-921.834081,0.000179,2]
[401345865,1768149048867,-2071.7205,0.000179,2]
[401345867,1768149048876,-921.834081,0.000179,2]
[401345869,1768149048885,-688.46633302,0.000179,2]
[401345871,1768149048896,-263.81978441,0.000179,3]
[401345873,1768149048906,-688.46633296,0.000179,2]
[401345875,1768149048916,-151.0,0.000179,2]
[401345877,1768149048927,-151.0,0.000179,2]
[401345880,1768149048937,-151.0,0.000179,2]
[401345882,1768149048947,-688.46633296,0.000179,2]
[401345884,1768149048956,-151.0,0.000179,2]
[401345886,1768149048965,-455.569602,0.000179,2]
[401345888,1768149048975,-590.06318863,0.000179,2]
[401345890,1768149048984,-455.569602,0.000179,2]
[401345892,1768149048994,-455.569602,0.000179,2]
[401345894,1768149049003,-688.46633296,0.000179,2]
[401345896,1768149049013,-455.569602,0.000179,2]
[401345898,1768149049022,-382.764866,0.000179,2]
[401345900,1768149049032,-688.46633296,0.000179,2]
[401345902,1768149049042,-151.0,0.000179,2]
[401345904,1768149049052,-382.764866,0.000179,2]
[401345906,1768149049061,-382.764866,0.000179,2]
[401345908,1768149049071,-382.764866,0.000179,2]
[401345910,1768149049080,-151.0,0.000179,2]
[401345912,1768149049089,-151.0,0.000179,2]
[401345914,1768149049099,-151.0,0.000179,2]
[401345916,1768149049108,-688.46633296,0.000179,2]
[401345918,1768149049118,-151.0,0.000179,2]
[401345920,1768149049127,-151.0,0.000179,2]
[401345922,1768149049137,-275.980319,0.000179,2]
[401345924,1768149049147,-151.0,0.000179,2]
[401345926,1768149049156,-151.0,0.000179,2]
[401345928,1768149049166,-199.832252,0.000179,2]
[401345930,1768149049177,-688.46633296,0.000179,2]
[401345932,1768149049191,-275.980319,0.000179,2]
[401345935,1768149049202,-151.0,0.000179,2]
[401345937,1768149049212,-228.553516,0.000179,2]
[401345939,1768149049222,-199.832252,0.000179,2]
[401345941,1768149049232,-151.0,0.000179,2]
[401345943,1768149049242,-275.980319,0.000179,2]
[401345945,1768149049252,-151.0,0.000179,2]
[401345947,1768149049262,-151.0,0.000179,2]
[401345949,1768149049272,-199.832252,0.000179,2]
[401345951,1768149049282,-275.980319,0.000179,2]
[401345953,1768149049292,-285.187657,0.000179,2]
[401345955,1768149049302,-151.0,0.000179,2]
[401345957,1768149049312,-199.832252,0.000179,2]
[401345959,1768149049321,-688.46633296,0.000179,2]
[401345961,1768149049331,-404.160553,0.000179,2]
[401345963,1768149049341,-500.0,0.000179,2]
[401345965,1768149049352,-500.0,0.000179,2]